[Event "CCT Chessable Masters Play-In 2025"]
[Site "Online"]
[Date "2025.02.17"]
[Round "2.46"]
[White "Le, Quang Liem"]
[Black "Perez Ponsa, Federico"]
[Result "1-0"]
[ECO "E94"]
[WhiteElo "2739"]
[BlackElo "2528"]
[PlyCount "75"]
[EventDate "2025.02.13"]
[EventType "swiss"]
[EventCountry "NET"]
[TimeControl "600"]
[WhiteClock "0:02:31"]

1. Nf3 {[%emt 0:00:01]} Nf6 {[%emt 0:00:07]} 2. c4 {[%emt 0:00:01]} g6 {[%emt 0:00:01]} 3. Nc3 {[%emt 0:00:02]} Bg7 {[%emt 0:00:05]} 4. e4 {[%emt 0:00:01]} d6 {[%emt 0:00:11]} 5. d4 {[%emt 0:00:00]} O-O {[%emt 0:00:00]} 6. Be2 {[%emt 0:00:02]} e5 {[%emt 0:00:02]} 7. O-O {[%emt 0:00:01]} Na6 {[%emt 0:00:02]} 8. Re1 {[%emt 0:00:08]} Bg4 {[%emt 0:00:03]} 9. d5 {[%emt 0:00:34]} Nc5 {[%emt 0:00:10]} 10. Qc2 {[%emt 0:00:10]} a5 {[%emt 0:00:08]} 11. Be3 {[%emt 0:00:02]} Ne8 {[%emt 0:01:10]} 12. a3 {[%emt 0:00:39]} a4 {[%emt 0:00:23]} 13. Bxc5 {[%emt 0:00:04]} dxc5 {[%emt 0:00:01]} 14. Nxa4 {[%emt 0:00:02]} b6 {[%emt 0:00:10]} 15. b4 {[%emt 0:00:09]} Bd7 {[%emt 0:00:14]} 16. Nb2 {[%emt 0:00:06]} Nd6 {[%emt 0:00:08]} 17. bxc5 {[%emt 0:00:01]} bxc5 {[%emt 0:00:01]} 18. a4 {[%emt 0:00:05]} f5 {[%emt 0:00:09]} 19. Nd2 {[%emt 0:00:03]} Bh6 {[%emt 0:00:10]} 20. Bd3 {[%emt 0:00:38]} fxe4 {[%emt 0:01:23]} 21. Nxe4 {[%emt 0:00:05]} Nf5 {[%emt 0:00:01]} 22. Nxc5 {[%emt 0:00:18]} Nd4 {[%emt 0:01:09]} 23. Qc3 {[%emt 0:00:02]} Qh4 {[%emt 0:00:34]} 24. Nd1 {[%emt 0:01:05]} Bf4 {[%emt 0:01:16]} 25. h3 {[%emt 0:00:32]} Bxh3 {[%emt 0:00:44]} 26. Be4 {[%emt 0:00:02]} Bg4 {[%emt 0:00:33]} 27. g3 {[%emt 0:00:05]} Qh5 {[%emt 0:00:01]} 28. gxf4 {[%emt 0:01:32]} Nf3+ {[%emt 0:00:02]} 29. Kf1 {[%emt 0:00:05]} Qh1+ {[%emt 0:00:10]} 30. Ke2 {[%emt 0:00:01]} Nxe1+ {[%emt 0:00:01]} 31. Kd2 {[%emt 0:00:03]} Bf3 {[%emt 0:00:10]} 32. Nb2 {[%emt 0:00:22]} Bxe4 {[%emt 0:00:09]} 33. Rxe1 {[%emt 0:00:02]} Qg2 {[%emt 0:00:01]} 34. Nxe4 {[%emt 0:00:02]} Rxf4 {[%emt 0:00:01]} 35. Qxe5 {[%emt 0:00:04]} Raf8 {[%emt 0:00:00]} 36. Nd3 {[%emt 0:00:02]} Rf3 {[%emt 0:00:02]} 37. a5 {[%emt 0:00:13]} Qh3 38. Qe6+ {[%emt 0:00:05]} 1-0

[Event "CCT Chessable Masters Play-In 2025"]
[Site "Online"]
[Date "2025.02.17"]
[Round "2.47"]
[White "Blohberger, Felix"]
[Black "Paravyan, David"]
[Result "1/2-1/2"]
[ECO "D04"]
[WhiteElo "2532"]
[BlackElo "2621"]
[PlyCount "81"]
[EventDate "2025.02.13"]
[EventType "swiss"]
[EventCountry "NET"]
[TimeControl "600"]
[WhiteClock "0:02:51"]
[BlackClock "0:02:28"]

1. d4 {[%emt 0:00:01]} d5 {[%emt 0:00:02]} 2. Nf3 {[%emt 0:00:01]} Nf6 {[%emt 0:00:01]} 3. e3 {[%emt 0:00:01]} a6 {[%emt 0:00:02]} 4. Be2 {[%emt 0:00:25]} Bf5 {[%emt 0:00:05]} 5. Nh4 {[%emt 0:00:05]} Bd7 {[%emt 0:00:41]} 6. O-O {[%emt 0:00:03]} e6 {[%emt 0:00:20]} 7. Nf3 {[%emt 0:00:13]} Bb5 {[%emt 0:00:08]} 8. b3 {[%emt 0:00:08]} Bxe2 {[%emt 0:00:04]} 9. Qxe2 {[%emt 0:00:00]} Bd6 {[%emt 0:00:22]} 10. c4 {[%emt 0:00:06]} c6 {[%emt 0:00:16]} 11. Nbd2 {[%emt 0:00:06]} O-O {[%emt 0:00:12]} 12. e4 {[%emt 0:00:01]} dxe4 {[%emt 0:00:07]} 13. Nxe4 {[%emt 0:00:01]} Nxe4 {[%emt 0:00:02]} 14. Qxe4 {[%emt 0:00:00]} Nd7 {[%emt 0:00:02]} 15. Bg5 {[%emt 0:00:26]} Be7 {[%emt 0:01:12]} 16. Bf4 {[%emt 0:00:26]} a5 {[%emt 0:00:02]} 17. Rad1 {[%emt 0:00:07]} a4 {[%emt 0:00:07]} 18. Qc2 {[%emt 0:00:34]} Qa5 {[%emt 0:00:07]} 19. Rfe1 {[%emt 0:00:12]} Rfe8 {[%emt 0:00:02]} 20. h3 {[%emt 0:00:29]} h6 {[%emt 0:00:49]} 21. Re2 {[%emt 0:00:17]} Bf8 {[%emt 0:00:06]} 22. Bd2 {[%emt 0:00:08]} axb3 {[%emt 0:00:24]} 23. axb3 {[%emt 0:00:00]} Qa2 {[%emt 0:00:03]} 24. Qd3 {[%emt 0:00:20]} Qa6 {[%emt 0:00:09]} 25. Bf4 {[%emt 0:00:25]} b5 {[%emt 0:00:05]} 26. Rc2 {[%emt 0:00:43]} bxc4 {[%emt 0:00:18]} 27. bxc4 {[%emt 0:00:08]} c5 {[%emt 0:00:00]} 28. Ne5 {[%emt 0:00:12]} Rad8 {[%emt 0:00:42]} 29. Nxd7 {[%emt 0:00:19]} Rxd7 {[%emt 0:00:00]} 30. d5 {[%emt 0:00:01]} exd5 {[%emt 0:00:02]} 31. cxd5 {[%emt 0:00:03]} Re1+ {[%emt 0:00:39]} 32. Kh2 {[%emt 0:00:01]} Qxd3 {[%emt 0:00:01]} 33. Rxd3 {[%emt 0:00:02]} Re4 {[%emt 0:00:01]} 34. Be3 {[%emt 0:00:46]} c4 {[%emt 0:00:02]} 35. Rd4 {[%emt 0:00:05]} Rxd4 {[%emt 0:00:03]} 36. Bxd4 {[%emt 0:00:00]} Rxd5 {[%emt 0:00:01]} 37. Rxc4 {[%emt 0:00:01]} Bd6+ {[%emt 0:00:00]} 38. g3 {[%emt 0:00:05]} Be7 {[%emt 0:00:02]} 39. Kg2 {[%emt 0:00:02]} Rd7 {[%emt 0:00:05]} 40. h4 {[%emt 0:00:03]} h5 {[%emt 0:00:06]} 41. Be3 {[%emt 0:00:03]} 1/2-1/2

[Event "CCT Chessable Masters Play-In 2025"]
[Site "Online"]
[Date "2025.02.17"]
[Round "2.48"]
[White "Pranav, V."]
[Black "Gokerkan, Cem Kaan"]
[Result "0-1"]
[ECO "D00"]
[WhiteElo "2615"]
[BlackElo "2473"]
[PlyCount "114"]
[EventDate "2025.02.13"]
[EventType "swiss"]
[EventCountry "NET"]
[TimeControl "600"]
[BlackClock "0:00:01"]

1. d4 {[%emt 0:00:01]} Nf6 {[%emt 0:00:02]} 2. Bg5 {[%emt 0:00:01]} d5 {[%emt 0:00:01]} 3. Bxf6 {[%emt 0:00:01]} exf6 {[%emt 0:00:06]} 4. e3 {[%emt 0:00:02]} Bd6 {[%emt 0:00:04]} 5. Nf3 {[%emt 0:00:05]} c6 {[%emt 0:00:04]} 6. c4 {[%emt 0:00:04]} dxc4 {[%emt 0:00:04]} 7. Bxc4 {[%emt 0:00:00]} f5 {[%emt 0:00:16]} 8. Qc2 {[%emt 0:00:05]} g6 {[%emt 0:00:04]} 9. Nc3 {[%emt 0:01:28]} Nd7 {[%emt 0:00:02]} 10. h4 {[%emt 0:00:29]} Nf6 {[%emt 0:00:10]} 11. O-O-O {[%emt 0:00:08]} b5 {[%emt 0:01:07]} 12. Bb3 {[%emt 0:00:08]} a5 {[%emt 0:00:02]} 13. Ne5 {[%emt 0:01:32]} O-O {[%emt 0:00:03]} 14. a4 {[%emt 0:00:48]} Qc7 {[%emt 0:01:37]} 15. axb5 {[%emt 0:00:40]} Bxe5 {[%emt 0:00:03]} 16. dxe5 {[%emt 0:00:00]} Qxe5 {[%emt 0:00:00]} 17. bxc6 {[%emt 0:00:03]} Be6 {[%emt 0:00:03]} 18. Ba4 {[%emt 0:00:06]} Rab8 {[%emt 0:00:07]} 19. Rd4 {[%emt 0:00:03]} Rb4 {[%emt 0:01:29]} 20. Rhd1 {[%emt 0:00:03]} Kg7 {[%emt 0:01:16]} 21. Ne2 {[%emt 0:01:13]} Rfb8 {[%emt 0:00:09]} 22. Rxb4 {[%emt 0:00:04]} Rxb4 {[%emt 0:00:00]} 23. Rd4 {[%emt 0:00:02]} Rb8 {[%emt 0:00:35]} 24. Nf4 {[%emt 0:00:14]} Ne4 {[%emt 0:00:19]} 25. Nxe6+ {[%emt 0:00:16]} fxe6 {[%emt 0:00:00]} 26. Kb1 {[%emt 0:00:17]} Kh6 {[%emt 0:00:30]} 27. f3 {[%emt 0:00:44]} Nf6 {[%emt 0:00:29]} 28. Qd2 {[%emt 0:00:02]} Kg7 {[%emt 0:00:16]} 29. f4 {[%emt 0:00:32]} Qc5 {[%emt 0:00:03]} 30. Qc2 {[%emt 0:00:03]} Qb6 {[%emt 0:00:08]} 31. Qc3 {[%emt 0:00:16]} Kh6 {[%emt 0:00:01]} 32. Rc4 {[%emt 0:00:09]} Nd5 {[%emt 0:00:02]} 33. Qd4 {[%emt 0:00:01]} Qc7 {[%emt 0:00:18]} 34. e4 {[%emt 0:00:01]} Nb6 {[%emt 0:00:05]} 35. Rc1 {[%emt 0:00:08]} Nxa4 {[%emt 0:00:00]} 36. Qxa4 {[%emt 0:00:01]} Qxf4 {[%emt 0:00:01]} 37. c7 {[%emt 0:00:01]} Rc8 {[%emt 0:00:00]} 38. Qd7 {[%emt 0:00:00]} Qxe4+ {[%emt 0:00:00]} 39. Ka1 {[%emt 0:00:01]} Qf4 {[%emt 0:00:04]} 40. Rc3 {[%emt 0:00:01]} Qf1+ {[%emt 0:00:02]} 41. Ka2 {[%emt 0:00:00]} Qa6 {[%emt 0:00:00]} 42. Rc6 {[%emt 0:00:01]} Qb7 {[%emt 0:00:06]} 43. Qd6 {[%emt 0:00:00]} a4 {[%emt 0:00:03]} 44. Rb6 {[%emt 0:00:01]} Qe4 {[%emt 0:00:02]} 45. Qd2+ {[%emt 0:00:02]} f4 {[%emt 0:00:01]} 46. Rb4 {[%emt 0:00:00]} Qe3 {[%emt 0:00:00]} 47. Qd6 {[%emt 0:00:01]} a3 {[%emt 0:00:02]} 48. Qe7 {[%emt 0:00:00]} axb2 {[%emt 0:00:00]} 49. Qg5+ {[%emt 0:00:00]} Kg7 {[%emt 0:00:00]} 50. Qe7+ {[%emt 0:00:00]} Kg8 {[%emt 0:00:00]} 51. Rb8 {[%emt 0:00:01]} Qa3+ {[%emt 0:00:00]} 52. Kb1 {[%emt 0:00:00]} Qa1+ {[%emt 0:00:01]} 53. Kc2 {[%emt 0:00:00]} Qc1+ {[%emt 0:00:00]} 54. Kd3 {[%emt 0:00:00]} b1=Q+ {[%emt 0:00:00]} 55. Kd4 {[%emt 0:00:01]} Qd2+ {[%emt 0:00:01]} 56. Ke5 {[%emt 0:00:00]} Qb5+ {[%emt 0:00:00]} 57. Kf6 Qd4+ {[%emt 0:00:01]} 0-1

[Event "CCT Chessable Masters Play-In 2025"]
[Site "Online"]
[Date "2025.02.17"]
[Round "2.49"]
[White "Pranav Anand"]
[Black "Ter-Sahakyan, Samvel"]
[Result "0-1"]
[ECO "B30"]
[WhiteElo "2538"]
[BlackElo "2611"]
[PlyCount "148"]
[EventDate "2025.02.13"]
[EventType "swiss"]
[EventCountry "NET"]
[TimeControl "600"]
[WhiteClock "0:00:08"]
[BlackClock "0:00:23"]

1. e4 {[%emt 0:00:01]} c5 {[%emt 0:00:04]} 2. Nf3 {[%emt 0:00:00]} Nc6 {[%emt 0:00:02]} 3. Bb5 {[%emt 0:00:02]} Nf6 {[%emt 0:00:12]} 4. Nc3 {[%emt 0:00:02]} g6 {[%emt 0:00:04]} 5. e5 {[%emt 0:00:08]} Nh5 {[%emt 0:00:06]} 6. O-O {[%emt 0:00:00]} Nd4 {[%emt 0:00:13]} 7. Bc4 {[%emt 0:00:03]} Bg7 {[%emt 0:00:07]} 8. Re1 {[%emt 0:00:12]} Nf4 {[%emt 0:00:26]} 9. d3 {[%emt 0:00:18]} Nfe6 {[%emt 0:00:02]} 10. a4 {[%emt 0:00:31]} O-O {[%emt 0:00:03]} 11. h3 {[%emt 0:00:22]} b6 {[%emt 0:00:09]} 12. Bd5 {[%emt 0:00:05]} Rb8 {[%emt 0:00:03]} 13. Nxd4 {[%emt 0:00:07]} cxd4 {[%emt 0:00:08]} 14. Nb5 {[%emt 0:00:10]} a6 {[%emt 0:00:12]} 15. Na3 {[%emt 0:00:01]} Bb7 {[%emt 0:00:12]} 16. Qf3 {[%emt 0:00:15]} Bxd5 {[%emt 0:00:02]} 17. Qxd5 {[%emt 0:00:00]} Qc7 {[%emt 0:00:01]} 18. Bd2 {[%emt 0:00:08]} Rfc8 {[%emt 0:00:17]} 19. Rac1 {[%emt 0:00:40]} Qc6 {[%emt 0:00:18]} 20. Qxc6 {[%emt 0:00:20]} Rxc6 {[%emt 0:00:00]} 21. f4 {[%emt 0:00:13]} b5 {[%emt 0:00:14]} 22. axb5 {[%emt 0:00:02]} axb5 {[%emt 0:00:00]} 23. g3 {[%emt 0:00:01]} h5 {[%emt 0:00:52]} 24. Kf2 {[%emt 0:00:07]} f6 {[%emt 0:00:11]} 25. exf6 {[%emt 0:00:11]} Bxf6 {[%emt 0:00:00]} 26. Kf3 {[%emt 0:00:10]} Kf7 {[%emt 0:00:02]} 27. g4 {[%emt 0:00:05]} Nc7 {[%emt 0:00:13]} 28. Re4 {[%emt 0:01:08]} Nd5 {[%emt 0:00:24]} 29. g5 {[%emt 0:00:29]} Bg7 {[%emt 0:00:02]} 30. Be1 {[%emt 0:00:05]} Ne3 {[%emt 0:00:18]} 31. Bb4 {[%emt 0:00:19]} e6 {[%emt 0:00:10]} 32. Re5 {[%emt 0:00:37]} d5 {[%emt 0:00:32]} 33. c3 {[%emt 0:00:18]} Bxe5 {[%emt 0:00:20]} 34. fxe5 {[%emt 0:00:01]} Nf5 {[%emt 0:00:01]} 35. Ke2 {[%emt 0:00:00]} Ke8 {[%emt 0:00:08]} 36. Kd2 {[%emt 0:00:03]} Kd7 {[%emt 0:00:06]} 37. Rf1 {[%emt 0:00:01]} dxc3+ {[%emt 0:00:08]} 38. bxc3 {[%emt 0:00:03]} Ra6 {[%emt 0:00:01]} 39. d4 {[%emt 0:00:07]} Kc6 {[%emt 0:00:06]} 40. Kd3 {[%emt 0:00:17]} Rba8 {[%emt 0:00:03]} 41. Nc2 {[%emt 0:00:02]} Ra2 {[%emt 0:00:06]} 42. Rb1 {[%emt 0:00:15]} R2a4 {[%emt 0:00:46]} 43. Rf1 {[%emt 0:00:04]} R8a7 {[%emt 0:00:03]} 44. Bc5 {[%emt 0:00:02]} Rf7 {[%emt 0:00:02]} 45. Nb4+ {[%emt 0:00:09]} Kb7 {[%emt 0:00:01]} 46. Nc2 {[%emt 0:00:09]} Ra5 {[%emt 0:00:14]} 47. Nb4 {[%emt 0:00:07]} Kc8 {[%emt 0:00:14]} 48. Bb6 {[%emt 0:00:13]} Ra4 {[%emt 0:00:04]} 49. Bc5 {[%emt 0:00:00]} Kd7 {[%emt 0:00:06]} 50. Bb6 {[%emt 0:00:12]} Ke8 {[%emt 0:00:04]} 51. Bc5 {[%emt 0:00:00]} Ng3 {[%emt 0:00:19]} 52. Rf6 {[%emt 0:00:06]} Rxf6 {[%emt 0:00:17]} 53. gxf6 {[%emt 0:00:00]} Nf5 {[%emt 0:00:17]} 54. Nc6 {[%emt 0:00:03]} Nh6 {[%emt 0:00:03]} 55. h4 {[%emt 0:00:04]} Nf7 {[%emt 0:00:02]} 56. Ne7 {[%emt 0:00:03]} g5 {[%emt 0:00:01]} 57. hxg5 {[%emt 0:00:00]} Nxg5 {[%emt 0:00:01]} 58. Ng6 {[%emt 0:00:00]} Ra1 {[%emt 0:00:05]} 59. Ke3 {[%emt 0:00:02]} Rf1 {[%emt 0:00:01]} 60. Nh4 {[%emt 0:00:03]} Kf7 {[%emt 0:00:03]} 61. Bb4 {[%emt 0:00:06]} Rh1 {[%emt 0:00:01]} 62. Ng2 {[%emt 0:00:02]} Rh3+ {[%emt 0:00:01]} 63. Ke2 {[%emt 0:00:08]} Rf3 {[%emt 0:00:03]} 64. Nh4 {[%emt 0:00:04]} Rf4 {[%emt 0:00:01]} 65. Ng2 {[%emt 0:00:00]} Re4+ {[%emt 0:00:01]} 66. Kf2 {[%emt 0:00:01]} h4 {[%emt 0:00:00]} 67. Ne3 {[%emt 0:00:05]} h3 {[%emt 0:00:03]} 68. Nf1 {[%emt 0:00:01]} Rg4 {[%emt 0:00:01]} 69. Ba3 {[%emt 0:00:03]} Ne4+ {[%emt 0:00:01]} 70. Kf3 {[%emt 0:00:01]} Rg1 {[%emt 0:00:02]} 71. Nh2 {[%emt 0:00:01]} Rg2 {[%emt 0:00:01]} 72. Ng4 {[%emt 0:00:01]} Rg3+ {[%emt 0:00:00]} 73. Kf4 {[%emt 0:00:01]} Rxg4+ {[%emt 0:00:01]} 74. Kxg4 {[%emt 0:00:02]} h2 {[%emt 0:00:00]} 0-1

[Event "CCT Chessable Masters Play-In 2025"]
[Site "Online"]
[Date "2025.02.17"]
[Round "2.50"]
[White "Zhu, Jiner"]
[Black "Abdusattorov, Nodirbek"]
[Result "1-0"]
[ECO "B06"]
[WhiteElo "2514"]
[BlackElo "2766"]
[PlyCount "97"]
[EventDate "2025.02.13"]
[EventType "swiss"]
[EventCountry "NET"]
[TimeControl "600"]
[WhiteClock "0:02:47"]
[BlackClock "0:01:49"]

1. e4 {[%emt 0:00:01]} c5 {[%emt 0:00:02]} 2. Nf3 {[%emt 0:00:01]} g6 {[%emt 0:00:05]} 3. c3 {[%emt 0:00:04]} d5 {[%emt 0:00:01]} 4. exd5 {[%emt 0:00:00]} Qxd5 {[%emt 0:00:01]} 5. d4 {[%emt 0:00:05]} Bg7 {[%emt 0:00:01]} 6. Nbd2 {[%emt 0:00:02]} cxd4 {[%emt 0:00:08]} 7. Bc4 {[%emt 0:00:01]} Qd8 {[%emt 0:00:03]} 8. Nxd4 {[%emt 0:00:04]} Nf6 {[%emt 0:00:02]} 9. O-O {[%emt 0:00:03]} O-O {[%emt 0:00:01]} 10. N2f3 {[%emt 0:00:01]} Qc7 {[%emt 0:00:08]} 11. Qe2 {[%emt 0:00:30]} a6 {[%emt 0:00:05]} 12. Re1 {[%emt 0:00:08]} Nbd7 {[%emt 0:00:16]} 13. Bb3 {[%emt 0:00:22]} e6 {[%emt 0:00:04]} 14. Bc2 {[%emt 0:00:20]} b6 {[%emt 0:00:09]} 15. Bg5 {[%emt 0:00:20]} Bb7 {[%emt 0:00:01]} 16. Rad1 {[%emt 0:00:02]} Rfe8 {[%emt 0:00:11]} 17. Ne5 {[%emt 0:00:42]} Nxe5 {[%emt 0:00:11]} 18. Qxe5 {[%emt 0:00:00]} Qxe5 {[%emt 0:00:01]} 19. Rxe5 {[%emt 0:00:01]} h6 {[%emt 0:00:06]} 20. Bc1 {[%emt 0:00:02]} Red8 {[%emt 0:00:15]} 21. Ree1 {[%emt 0:00:01]} Rac8 {[%emt 0:00:02]} 22. a4 {[%emt 0:00:11]} Nd5 {[%emt 0:00:04]} 23. Nf3 {[%emt 0:00:05]} g5 {[%emt 0:00:03]} 24. h3 {[%emt 0:00:06]} Bf6 {[%emt 0:00:20]} 25. Ne5 {[%emt 0:00:05]} Kg7 {[%emt 0:00:06]} 26. Ng4 {[%emt 0:00:15]} Be7 {[%emt 0:00:01]} 27. Ne3 {[%emt 0:00:11]} Nf4 {[%emt 0:01:06]} 28. Nf5+ {[%emt 0:00:05]} Kf8 {[%emt 0:00:02]} 29. Nxe7 {[%emt 0:00:03]} Kxe7 {[%emt 0:00:00]} 30. Rxd8 {[%emt 0:00:40]} Rxd8 {[%emt 0:00:01]} 31. f3 {[%emt 0:00:01]} Nd3 {[%emt 0:00:22]} 32. Bxd3 {[%emt 0:00:03]} Rxd3 {[%emt 0:00:00]} 33. Be3 {[%emt 0:00:03]} Bc6 {[%emt 0:00:14]} 34. Bxb6 {[%emt 0:00:09]} Rd2 {[%emt 0:00:11]} 35. Bc5+ {[%emt 0:00:10]} Kf6 {[%emt 0:00:02]} 36. b3 {[%emt 0:00:33]} Rb2 {[%emt 0:00:02]} 37. b4 {[%emt 0:00:01]} Bxa4 {[%emt 0:00:01]} 38. Bd4+ {[%emt 0:00:05]} Kg6 {[%emt 0:00:08]} 39. Kh2 {[%emt 0:00:07]} Rc2 {[%emt 0:00:05]} 40. Kg3 {[%emt 0:00:04]} Bb5 {[%emt 0:00:01]} 41. Kh2 {[%emt 0:00:13]} Bc4 {[%emt 0:00:01]} 42. h4 {[%emt 0:00:29]} gxh4 {[%emt 0:00:08]} 43. Re4 {[%emt 0:00:02]} Bd5 {[%emt 0:00:56]} 44. Rg4+ {[%emt 0:00:07]} Kf5 {[%emt 0:00:01]} 45. Rxh4 {[%emt 0:00:10]} Bxf3 {[%emt 0:00:11]} 46. Kg3 {[%emt 0:00:03]} Be2 {[%emt 0:00:53]} 47. Rf4+ {[%emt 0:00:04]} Kg6 {[%emt 0:00:02]} 48. Rf6+ {[%emt 0:00:01]} Kh5 {[%emt 0:01:17]} 49. Be3 {[%emt 0:00:17]} 1-0

[Event "CCT Chessable Masters Play-In 2025"]
[Site "Online"]
[Date "2025.02.17"]
[Round "2.51"]
[White "Martinez Alcantara, Jose Eduardo"]
[Black "Sethuraman, S.P."]
[Result "1-0"]
[ECO "C47"]
[WhiteElo "2606"]
[BlackElo "2557"]
[PlyCount "193"]
[EventDate "2025.02.13"]
[EventType "swiss"]
[EventCountry "NET"]
[TimeControl "600"]
[WhiteClock "0:01:52"]

1. e4 {[%emt 0:00:01]} e5 {[%emt 0:00:02]} 2. Nf3 {[%emt 0:00:00]} Nc6 {[%emt 0:00:01]} 3. Nc3 {[%emt 0:00:00]} Nf6 {[%emt 0:00:02]} 4. h3 {[%emt 0:00:00]} d5 {[%emt 0:00:05]} 5. Bb5 {[%emt 0:00:01]} Nxe4 {[%emt 0:00:29]} 6. O-O {[%emt 0:00:02]} Qd6 {[%emt 0:00:17]} 7. d4 {[%emt 0:00:19]} Nxc3 {[%emt 0:00:07]} 8. bxc3 {[%emt 0:00:00]} e4 {[%emt 0:00:01]} 9. Re1 {[%emt 0:00:01]} Be7 {[%emt 0:00:02]} 10. Ne5 {[%emt 0:00:53]} O-O {[%emt 0:00:03]} 11. Bf4 {[%emt 0:00:01]} Nxe5 {[%emt 0:00:06]} 12. Bxe5 {[%emt 0:00:05]} Qg6 {[%emt 0:00:02]} 13. Re3 {[%emt 0:00:28]} Qb6 {[%emt 0:00:28]} 14. Rb1 {[%emt 0:00:26]} c6 {[%emt 0:00:02]} 15. Be2 {[%emt 0:00:02]} Qd8 {[%emt 0:00:03]} 16. c4 {[%emt 0:00:01]} b6 {[%emt 0:00:30]} 17. f3 {[%emt 0:00:30]} exf3 {[%emt 0:00:28]} 18. Bxf3 {[%emt 0:00:03]} Be6 {[%emt 0:00:02]} 19. Bg4 {[%emt 0:00:43]} Bg5 {[%emt 0:00:24]} 20. Rg3 {[%emt 0:00:01]} f5 {[%emt 0:00:07]} 21. cxd5 {[%emt 0:00:21]} cxd5 {[%emt 0:00:46]} 22. Be2 {[%emt 0:00:08]} f4 {[%emt 0:00:02]} 23. Rc3 {[%emt 0:00:07]} Rc8 {[%emt 0:00:09]} 24. Rbb3 {[%emt 0:00:10]} Qd7 {[%emt 0:00:27]} 25. Bf3 {[%emt 0:00:01]} Rxc3 {[%emt 0:00:24]} 26. Rxc3 {[%emt 0:00:00]} Rc8 {[%emt 0:00:01]} 27. Ra3 {[%emt 0:00:13]} Be7 {[%emt 0:00:20]} 28. Rb3 {[%emt 0:00:14]} Bd6 {[%emt 0:00:02]} 29. Qd2 {[%emt 0:00:06]} Bxe5 {[%emt 0:00:15]} 30. dxe5 {[%emt 0:00:01]} Qc7 {[%emt 0:00:04]} 31. Qxf4 {[%emt 0:00:30]} Qxc2 {[%emt 0:00:02]} 32. Kh2 {[%emt 0:00:03]} Qxa2 {[%emt 0:00:19]} 33. Bg4 {[%emt 0:00:05]} Bxg4 {[%emt 0:00:16]} 34. Qxg4 {[%emt 0:00:00]} Qc2 {[%emt 0:00:20]} 35. Qe6+ {[%emt 0:00:27]} Kh8 {[%emt 0:00:01]} 36. Rf3 {[%emt 0:00:00]} d4 {[%emt 0:00:41]} 37. Qd7 {[%emt 0:00:34]} Qc5 {[%emt 0:00:11]} 38. Rf4 {[%emt 0:00:00]} Rg8 {[%emt 0:00:18]} 39. Re4 {[%emt 0:00:03]} d3 {[%emt 0:00:31]} 40. Qxd3 {[%emt 0:00:00]} Qc7 {[%emt 0:00:06]} 41. Qd6 {[%emt 0:00:09]} Rc8 {[%emt 0:00:10]} 42. Qe6 {[%emt 0:00:02]} h6 {[%emt 0:00:06]} 43. Rd4 {[%emt 0:00:03]} Rf8 {[%emt 0:00:09]} 44. Rd7 {[%emt 0:00:20]} Qc1 {[%emt 0:00:05]} 45. Qg4 {[%emt 0:00:01]} Qf4+ {[%emt 0:00:03]} 46. Qxf4 {[%emt 0:00:02]} Rxf4 {[%emt 0:00:00]} 47. e6 {[%emt 0:00:00]} Re4 {[%emt 0:00:03]} 48. e7 {[%emt 0:00:00]} Kh7 {[%emt 0:00:01]} 49. Rxa7 {[%emt 0:00:01]} Kg6 {[%emt 0:00:05]} 50. Rb7 {[%emt 0:00:01]} Kf7 {[%emt 0:00:02]} 51. e8=Q+ {[%emt 0:00:00]} Kxe8 {[%emt 0:00:01]} 52. Rxb6 {[%emt 0:00:00]} Kf7 {[%emt 0:00:01]} 53. Rc6 {[%emt 0:00:01]} Re6 {[%emt 0:00:01]} 54. Rc7+ {[%emt 0:00:01]} Kf6 {[%emt 0:00:01]} 55. Rc1 {[%emt 0:00:00]} g5 {[%emt 0:00:01]} 56. Ra1 {[%emt 0:00:00]} Kg6 {[%emt 0:00:01]} 57. Kg3 {[%emt 0:00:00]} h5 {[%emt 0:00:00]} 58. Kf2 {[%emt 0:00:01]} h4 {[%emt 0:00:00]} 59. Kf3 {[%emt 0:00:01]} Rf6+ {[%emt 0:00:00]} 60. Ke3 {[%emt 0:00:00]} Re6+ {[%emt 0:00:01]} 61. Kf2 {[%emt 0:00:01]} Rf6+ {[%emt 0:00:00]} 62. Kg1 {[%emt 0:00:00]} Re6 {[%emt 0:00:00]} 63. Ra5 {[%emt 0:00:01]} Rf6 {[%emt 0:00:00]} 64. Rb5 {[%emt 0:00:00]} Rf5 {[%emt 0:00:01]} 65. Rb6+ {[%emt 0:00:01]} Rf6 {[%emt 0:00:00]} 66. Rb8 {[%emt 0:00:00]} Rf5 {[%emt 0:00:00]} 67. Re8 {[%emt 0:00:01]} Rf6 {[%emt 0:00:01]} 68. Re1 {[%emt 0:00:00]} Rf4 {[%emt 0:00:01]} 69. Kh2 {[%emt 0:00:01]} g4 {[%emt 0:00:01]} 70. hxg4 {[%emt 0:00:01]} Rxg4 {[%emt 0:00:00]} 71. Re5 {[%emt 0:00:01]} Rg5 {[%emt 0:00:01]} 72. Re6+ {[%emt 0:00:00]} Kh5 {[%emt 0:00:02]} 73. Ra6 {[%emt 0:00:00]} Re5 {[%emt 0:00:01]} 74. Ra2 {[%emt 0:00:01]} Rg5 {[%emt 0:00:01]} 75. Rb2 {[%emt 0:00:01]} Rg4 {[%emt 0:00:00]} 76. Kh3 {[%emt 0:00:02]} Rg5 {[%emt 0:00:00]} 77. Rb8 {[%emt 0:00:02]} Rg3+ {[%emt 0:00:01]} 78. Kh2 {[%emt 0:00:00]} Kg4 {[%emt 0:00:01]} 79. Rf8 {[%emt 0:00:02]} Re3 {[%emt 0:00:02]} 80. Rg8+ {[%emt 0:00:00]} Kh5 {[%emt 0:00:01]} 81. Rh8+ {[%emt 0:00:00]} Kg4 {[%emt 0:00:00]} 82. Ra8 {[%emt 0:00:00]} Kh5 {[%emt 0:00:02]} 83. Ra4 {[%emt 0:00:02]} Kg5 {[%emt 0:00:01]} 84. Kg1 {[%emt 0:00:01]} Rg3 {[%emt 0:00:01]} 85. Kf2 {[%emt 0:00:01]} Rg4 {[%emt 0:00:01]} 86. Ra5+ {[%emt 0:00:00]} Kg6 {[%emt 0:00:00]} 87. Ra3 {[%emt 0:00:00]} Rf4+ {[%emt 0:00:01]} 88. Ke2 {[%emt 0:00:01]} Kg5 {[%emt 0:00:01]} 89. Ra8 {[%emt 0:00:02]} Kg4 {[%emt 0:00:01]} 90. Rg8+ {[%emt 0:00:01]} Kf5 {[%emt 0:00:00]} 91. Ke3 {[%emt 0:00:02]} Re4+ {[%emt 0:00:01]} 92. Kf2 {[%emt 0:00:02]} Rf4+ {[%emt 0:00:01]} 93. Kg1 {[%emt 0:00:01]} Rg4 {[%emt 0:00:00]} 94. Rh8 {[%emt 0:00:02]} Kf4 {[%emt 0:00:01]} 95. Rf8+ {[%emt 0:00:03]} Kg5 {[%emt 0:00:00]} 96. Kh2 {[%emt 0:00:01]} Rb4 {[%emt 0:00:08]} 97. Rf3 {[%emt 0:00:11]} 1-0